fUST/lending_fUST_20251007
["ID","MTS","AMOUNT","RATE_DAILY","PERIOD"]
[389671234,1759782648867,-151.0,0.00019178,2]
[389671235,1759782648876,-151.0,0.00019178,2]
[389671236,1759782648886,-151.0,0.00019178,2]
[389671237,1759782648894,-151.0,0.00019178,2]
[389671238,1759782648903,-151.0,0.00019178,2]
[389671239,1759782648913,-278.791512,0.00019178,2]
[389671240,1759782648921,-481.69703632,0.00019178,2]
[389671241,1759782648930,-531.6,0.00019178,2]
[389671242,1759782648939,-500.0,0.00019178,2]
[389671243,1759782648949,-500.0,0.00019178,2]
[389671244,1759782648959,-607.22,0.00019178,2]
[389671245,1759782648968,-480.40111203,0.00019178,2]
[389671246,1759782648978,-500.0,0.00019178,2]
[389671247,1759782648987,-151.0,0.00019178,2]
[389671248,1759782648996,-151.0,0.00019178,2]
[389671249,1759782649005,-500.0,0.00019178,2]
[389671250,1759782649015,-500.0,0.00019178,2]
[389671251,1759782649025,-483.13260785,0.00019178,2]
[389671252,1759782649034,-500.0,0.00019178,2]
[389671253,1759782649043,-500.0,0.00019178,2]
[389671254,1759782649052,-500.0,0.00019178,2]
[389671255,1759782649061,-500.0,0.00019178,2]
[389671256,1759782649071,-500.0,0.00019178,2]
[389671257,1759782649080,-500.0,0.00019178,2]
[389671258,1759782649089,-151.0,0.00019178,2]
[389671259,1759782649098,-500.0,0.00019178,2]
[389671260,1759782649107,-1559.07,0.00019178,2]
[389671261,1759782649117,-8378.12,0.00019178,2]
[389671262,1759782649126,-1365.96,0.00019178,2]
[389671263,1759782649135,-500.0,0.00019178,2]
[389671264,1759782649144,-500.0,0.00019178,2]
[389671265,1759782649153,-4018.06,0.00019178,2]
[389671266,1759782649162,-151.0,0.00019178,2]
[389671267,1759782649175,-620.22,0.00019178,2]
[389671268,1759782649194,-151.0,0.00019178,2]
[389671269,1759782649210,-500.0,0.00019178,2]
[389671270,1759782649226,-500.0,0.00019178,2]
[389671271,1759782649243,-851.11,0.00019178,2]
[389671272,1759782649260,-500.0,0.00019178,2]
[389671273,1759782649276,-500.0,0.00019178,2]
[389671274,1759782649292,-500.0,0.00019178,2]
[389671275,1759782649308,-2307.7,0.00019178,2]
[389671276,1759782649324,-151.0,0.00019178,2]
[389671277,1759782649337,-151.0,0.00019178,2]
[389671278,1759782649352,-151.0,0.00019178,2]
[389671279,1759782649368,-151.0,0.00019178,2]
[389671280,1759782649386,-151.0,0.00019178,2]
[389671281,1759782649402,-500.0,0.00019178,2]
[389671282,1759782649414,-151.0,0.00019178,2]
[389671283,1759782649430,-500.0,0.00019178,2]
[389671284,1759782649446,-151.0,0.00019178,2]
[389671285,1759782649463,-151.0,0.00019178,2]
[389671286,1759782649478,-269.444728,0.00019178,2]
[389671287,1759782649491,-504.39,0.00019178,2]
[389671288,1759782649504,-481.24706094,0.00019178,2]
[389671289,1759782649517,-729.99,0.00019178,2]
[389671290,1759782649530,-652.13,0.00019178,2]
[389671291,1759782649543,-500.0,0.00019178,2]
[389671292,1759782649556,-500.0,0.00019178,2]
[389671293,1759782649570,-500.0,0.00019178,2]
[389671294,1759782649582,-500.0,0.00019178,2]
[389671295,1759782649595,-500.0,0.00019178,2]
[389671296,1759782649608,-500.0,0.00019178,2]
[389671297,1759782649622,-500.0,0.00019178,2]
[389671298,1759782649635,-562.12,0.00019178,2]
[389671299,1759782649649,-500.0,0.00019178,2]
[389671300,1759782649662,-4881.29,0.00019178,2]
[389671301,1759782649675,-500.0,0.00019178,2]
[389671302,1759782649688,-500.0,0.00019178,2]
[389671303,1759782649702,-151.0,0.00019178,2]
[389671304,1759782649718,-500.0,0.00019178,2]
[389671305,1759782649732,-151.0,0.00019178,2]
[389671306,1759782649745,-500.0,0.00019178,2]
[389671307,1759782649758,-500.0,0.00019178,2]
[389671308,1759782649772,-151.0,0.00019178,2]
[389671309,1759782649785,-500.0,0.00019178,2]
[389671310,1759782649797,-504.71530023,0.00019178,2]
[389671311,1759782649812,-1210.61,0.00019178,2]
[389671312,1759782649824,-500.0,0.00019178,2]
[389671313,1759782649838,-500.0,0.00019178,2]
[389671314,1759782649852,-500.0,0.00019178,2]
[389671315,1759782649865,-500.0,0.00019178,2]
[389671316,1759782649879,-589.54,0.00019178,2]
[389671317,1759782649892,-500.0,0.00019178,2]
[389671318,1759782649905,-500.0,0.00019178,2]
[389671319,1759782649918,-633.46,0.00019178,2]
[389671320,1759782649931,-500.0,0.00019178,2]
[389671321,1759782649943,-500.0,0.00019178,2]
[389671322,1759782649957,-500.0,0.00019178,2]
[389671323,1759782649969,-2505.43,0.00019178,2]
[389671324,1759782649983,-500.0,0.00019178,2]
[389671325,1759782649996,-500.0,0.00019178,2]
[389671326,1759782650010,-500.0,0.00019178,2]
[389671327,1759782650023,-500.0,0.00019178,2]
[389671328,1759782650038,-500.0,0.00019178,2]
[389671329,1759782650052,-500.0,0.00019178,2]
[389671330,1759782650064,-500.0,0.00019178,2]
[389671331,1759782650078,-500.0,0.00019178,2]
[389671332,1759782650092,-500.0,0.00019178,2]
[389671333,1759782650105,-500.0,0.00019178,2]
[389671334,1759782650117,-500.0,0.00019178,2]
[389671335,1759782650131,-500.0,0.00019178,2]
[389671336,1759782650144,-500.0,0.00019178,2]
[389671337,1759782650157,-301.31234816,0.00019178,2]
[389671338,1759782650170,-1302.31,0.00019178,2]
[389671339,1759782650183,-500.0,0.00019178,2]
[389671340,1759782650196,-500.0,0.00019178,2]
[389671341,1759782650210,-500.0,0.00019178,2]
[389671342,1759782650224,-151.0,0.00019178,2]
[389671343,1759782650237,-7600.15,0.00019178,2]
[389671344,1759782650250,-7600.15,0.00019178,2]
[389671345,1759782650263,-500.0,0.00019178,2]
[389671346,1759782650276,-7600.15,0.00019178,2]
[389671347,1759782650289,-500.0,0.00019178,2]
[389671348,1759782650303,-7600.15,0.00019178,2]
[389671349,1759782650316,-7600.15,0.00019178,2]
[389671350,1759782650329,-7600.15,0.00019178,2]
[389671351,1759782650340,-7600.15,0.00019178,2]
[389671352,1759782650349,-151.0,0.00019178,2]
[389671353,1759782650358,-7600.15,0.00019178,2]
[389671354,1759782650368,-151.0,0.00019178,2]
[389671355,1759782650377,-7600.15,0.00019178,2]
[389671356,1759782650386,-7600.15,0.00019178,2]
[389671357,1759782650544,-7600.15,0.00019178,2]
[389671358,1759782650622,-7600.15,0.00019178,2]
[389671359,1759782650635,-9668.46,0.00019178,2]
[389671360,1759782650643,-7600.15,0.00019178,2]
[389671361,1759782650653,-7600.15,0.00019178,2]
[389671362,1759782650662,-500.0,0.00019178,2]
[389671363,1759782650671,-7600.15,0.00019178,2]
[389671364,1759782650680,-467.21084569,0.00019178,2]
[389671365,1759782650689,-2123.61328521,0.00019178,2]
[389671366,1759782651558,-980.0,0.00019018,2]
[389671367,1759782651568,-500.0,0.00019073,2]
[389671368,1759782651578,-151.0,0.00019161,2]
[389671369,1759782651586,-151.0,0.00019161,2]
[389671370,1759782651596,-5476.53671479,0.00019178,2]
[389671371,1759782651605,-4691.46328521,0.00019178,2]
[389671372,1759782652905,-151.0,0.00019161,2]
[389671373,1759782652915,-158.25713735,0.00019161,2]
[389671374,1759782653253,500.0,0.00015799,2]
[389671375,1759782653405,500.0,0.00015799,2]
[389671376,1759782653436,500.0,0.00015799,2]
[389671377,1759782653478,169.23612533,0.00015799,2]
[389671378,1759782653513,500.0,0.00015799,2]
[389671379,1759782653687,500.0,0.00015641,2]
[389671380,1759782661544,161.378671,0.00024,30]
[389671381,1759782704412,500.0,0.00015799,2]
[389671382,1759782704443,500.0,0.00015799,2]
[389671383,1759782704477,500.0,0.00015799,2]
[389671384,1759782704506,500.0,0.00015799,2]
[389671385,1759782704539,300.0,0.00015799,2]
[389671386,1759782704672,500.0,0.00015799,2]
[389671387,1759782727707,500.0,0.00015799,2]
[389671388,1759782727737,500.0,0.00015799,2]
[389671389,1759782727772,500.0,0.00015799,2]
[389671390,1759782727828,500.0,0.00015799,2]
[389671391,1759782727864,179.49657673,0.00015799,2]
[389671392,1759782727887,320.50342327,0.00015799,2]
[389671393,1759782727917,500.0,0.00015799,2]
[389671394,1759782727952,308.91266256,0.00015799,2]
[389671395,1759782727991,500.0,0.00015799,2]
[389671396,1759782728021,500.0,0.00015799,2]
[389671397,1759782728059,500.0,0.00015799,2]
[389671398,1759782728088,500.0,0.00015799,2]
[389671399,1759782728118,500.0,0.00015799,2]
[389671400,1759782728204,500.0,0.00015799,2]
[389671401,1759782728259,500.0,0.00015799,2]
[389671402,1759782729016,500.0,0.00015799,2]
[389671403,1759782729328,500.0,0.00015799,2]
[389671404,1759782729641,500.0,0.00015799,2]
[389671405,1759782729972,500.0,0.00015799,2]
[389671406,1759782730270,250.0,0.00015799,2]
[389671407,1759782738958,437.52140075,0.00015799,2]
[389671408,1759782738988,500.0,0.00015799,2]
[389671409,1759782739022,500.0,0.00015799,2]
[389671410,1759782739050,500.0,0.00015799,2]
[389671411,1759782739103,500.0,0.00015799,2]
[389671412,1759782739172,500.0,0.00015799,2]
[389671413,1759782739219,180.21396306,0.00015799,2]
[389671414,1759782739266,2.85855036,0.00015799,2]
[389671415,1759782830439,136389.0,0.00025,30]
[389671416,1759782853706,500.0,0.00015723,2]
[389671417,1759782868991,500.0,0.00015723,2]
[389671418,1759782876714,500.0,0.00015723,2]
[389671419,1759782893155,500.0,0.00015723,2]
[389671420,1759782900865,500.0,0.00015723,2]
[389671421,1759782916058,500.0,0.00015723,2]
[389671422,1759782938865,500.0,0.00015723,2]
[389671423,1759782960997,500.0,0.00015723,2]
[389671424,1759782983216,500.0,0.00015723,2]
[389671425,1759783005618,500.0,0.00015723,2]
[389671426,1759783028024,500.0,0.00015723,2]
[389671427,1759783050473,500.0,0.00015723,2]
[389671428,1759783072858,236.87506194,0.00015723,2]
[389671429,1759783263211,161.378671,0.00024,30]
[389671430,1759783604117,170.64745108,0.00024932,30]
[389671431,1759783661307,200.0,0.0001899,10]
[389671432,1759783661414,200.0,0.0001899,10]
[389671433,1759783661693,200.0,0.0001899,10]
[389671434,1759783661977,200.0,0.0001899,10]
[389671435,1759783662273,200.0,0.0001899,10]
[389671436,1759783662651,200.0,0.0001899,10]
[389671437,1759783662938,200.0,0.0001899,10]
[389671438,1759783663231,200.0,0.0001899,10]
[389671439,1759783663516,200.0,0.0001899,10]
[389671440,1759783663794,200.0,0.0001899,10]
[389671441,1759783664130,200.0,0.0001899,10]
[389671442,1759783664376,200.0,0.0001899,10]
[389671443,1759783664662,200.0,0.0001899,10]
[389671444,1759783664945,200.0,0.0001899,10]
[389671445,1759783665236,200.0,0.0001899,10]
[389671446,1759783665519,200.0,0.0001899,10]
[389671447,1759783665850,200.0,0.0001899,10]
[389671448,1759783666079,200.0,0.0001899,10]
[389671449,1759783666373,200.0,0.0001899,10]
[389671450,1759783666651,200.0,0.0001899,10]
[389671451,1759783666937,200.0,0.0001899,10]
[389671452,1759783667221,200.0,0.0001899,10]
[389671453,1759783667939,200.0,0.0001899,10]
[389671454,1759783668020,200.0,0.0001899,10]
[389671455,1759783712986,154.0,0.00024,120]
[389671456,1759783714356,154.0,0.000257,120]
[389671457,1759783715716,154.0,0.000274,120]
[389671478,1759783831894,-500.0,0.00015882,2]
[389671480,1759783831903,-331.5833653,0.00015896,2]
[389671481,1759783831912,-364.74170183,0.00016696,2]
[389671483,1759783831922,-500.0,0.00016718,2]
[389671485,1759783831931,-177.7827178,0.00016772,2]
[389671487,1759783831940,-157.697559,0.00017025,2]
[389671489,1759783831949,-1324.15595824,0.0001732,2]
[389671491,1759783831958,-397.90003836,0.00017496,2]
[389671493,1759783831968,-1324.15595824,0.0001758,2]
[389671495,1759783831977,-500.0,0.00017598,2]
[389671496,1759783831986,-1324.15595824,0.00017879,2]
[389671498,1759783831996,-1324.15595824,0.00018099,2]
[389671500,1759783832005,-431.05837489,0.00018296,2]
[389671502,1759783832014,-300.0,0.00018349,2]
[389671504,1759783832024,-300.0,0.00018349,2]
[389671505,1759783832033,-300.0,0.00018349,2]
[389671506,1759783832043,-1200.0,0.00018349,2]
[389671507,1759783832052,-50000.0,0.0001835,2]
[389671510,1759783832063,-437.99871503,0.0001835,2]
[389671513,1759783832072,-401.98989178,0.00018392,2]
[389671514,1759783832081,-234.17717776,0.00018392,2]
[389671517,1759783832091,-1324.15595824,0.00018496,2]
[389671518,1759783832100,-500.0,0.00018524,2]
[389671521,1759783832109,-440.90641602,0.00018602,2]
[389671523,1759783832119,-1324.15595824,0.00018734,2]
[389671525,1759783832128,-315.2157343,0.00018768,2]
[389671527,1759783832136,-153.1052602,0.00018768,2]
[389671529,1759783832145,-314.452009,0.00018768,2]
[389671530,1759783832155,-326.0,0.00018905,2]
[389671533,1759783832164,-2664.03650951,0.00018925,2]
[389671534,1759783832174,-2664.03650949,0.00018963,2]
[389671536,1759783832183,-500.0,0.00018976,2]
[389671538,1759783832192,-500.0,0.00018976,2]
[389671540,1759783832201,-500.0,0.00018976,2]
[389671542,1759783832210,-500.0,0.00018976,2]
[389671544,1759783832219,-500.0,0.00018976,2]
[389671562,1759783832371,-500.0,0.00018976,2]
[389671564,1759783832390,-500.0,0.00018976,2]
[389671566,1759783832399,-500.0,0.00018976,2]
[389671568,1759783832408,-500.0,0.00018976,2]
[389671570,1759783832418,-500.0,0.00018976,2]
[389671572,1759783832426,-223.4849496,0.00018976,2]
[389671574,1759783832436,-500.0,0.00018976,2]
[389671576,1759783832446,-500.0,0.00018976,2]
[389671578,1759783832455,-500.0,0.00018976,2]
[389671580,1759783832464,-371.1162008,0.00018976,2]
[389671582,1759783832473,-585.23125128,0.00018976,2]
[389671584,1759783832482,-500.0,0.00018976,2]
[389671586,1759783832491,-526.33996724,0.00018976,2]
[389671588,1759783832500,-500.0,0.00018976,2]
[389671590,1759783832509,-151.0,0.00018979,2]
[389671592,1759783832518,-168.3888056,0.00018979,2]
[389671594,1759783832527,-18603.8837,0.00018979,2]
[389671596,1759783832536,-11564.8325867,0.0001899,2]
[389671600,1759783832563,-43105.77997824,0.0001899,2]
[389671602,1759783832572,-11248.06133396,0.00018996,2]
[389671604,1759783832581,-1777.93250389,0.00019,2]
[389671606,1759783832590,-2664.03650949,0.00019002,2]
[389671607,1759783832599,-770.14,0.00019016,3]
[389671609,1759783832608,-256.71,0.0001903,3]
[389671611,1759783832617,-2664.03650949,0.0001904,2]
[389671613,1759783832626,-324.64203647,0.00019077,2]
[389671615,1759783832636,-173.30698331,0.00019077,2]
[389671617,1759783832644,-177.04086749,0.00019078,2]
[389671620,1759783832654,-2664.03650949,0.00019078,2]
[389671621,1759783832663,-180561.36137495,0.00019078,2]
[389671623,1759783832673,-464.21671142,0.00019096,2]
[389671625,1759783832683,-151.0,0.000191,2]
[389671628,1759783832692,-151.0,0.000191,2]
[389671630,1759783832703,-151.0,0.000191,2]
[389671631,1759783832712,-151.0,0.000191,2]
[389671633,1759783832722,-168.0,0.0001916,2]
[389671635,1759783832730,-1324.15595828,0.00019166,2]
[389671637,1759783832740,-214.96446922,0.00019173,2]
[389671639,1759783832749,-500.0,0.00019173,2]
[389671641,1759783832758,-500.0,0.00019173,2]
[389671643,1759783832767,-500.0,0.00019173,2]
[389671645,1759783832776,-500.35889977,0.00019173,2]
[389671647,1759783832785,-501.24197452,0.00019173,2]
[389671649,1759783832795,-500.0,0.00019173,2]
[389671651,1759783832804,-438.29029447,0.00019173,2]
[389671653,1759783832813,-645.84502769,0.00019173,2]
[389671655,1759783832827,-500.0,0.00019173,2]
[389671657,1759783832836,-500.0,0.00019173,2]
[389671659,1759783832845,-500.0,0.00019173,2]
[389671661,1759783832855,-374.95130688,0.00019173,2]
[389671663,1759783832865,-165.13805503,0.00019173,2]
[389671665,1759783832874,-500.76694111,0.00019173,2]
[389671667,1759783832884,-500.0,0.00019173,2]
[389671669,1759783832894,-500.3459826,0.00019173,2]
[389671671,1759783832902,-500.0,0.00019173,2]
[389671673,1759783832911,-500.0,0.00019173,2]
[389671675,1759783832922,-200.30095249,0.00019173,2]
[389671677,1759783832935,-452.96937508,0.00019173,2]
[389671679,1759783832944,-500.93884573,0.00019173,2]
[389671681,1759783832955,-500.0,0.00019173,2]
[389671683,1759783832964,-500.0,0.00019173,2]
[389671685,1759783832973,-500.0,0.00019173,2]
[389671687,1759783832982,-200.18078479,0.00019173,2]
[389671689,1759783832992,-500.0,0.00019173,2]
[389671691,1759783833001,-500.47474524,0.00019173,2]
[389671693,1759783833011,-501.03087857,0.00019173,2]
[389671695,1759783833020,-500.0,0.00019173,2]
[389671697,1759783833030,-500.0,0.00019173,2]
[389671700,1759783833049,-500.0,0.00019173,2]
[389671702,1759783833060,-500.30974677,0.00019173,2]
[389671704,1759783833070,-500.12992458,0.00019173,2]
[389671706,1759783833081,-500.0,0.00019173,2]
[389671708,1759783833092,-500.45597933,0.00019173,2]
[389671710,1759783833103,-159.618289,0.00019173,2]
[389671712,1759783833113,-342.29172327,0.00019173,2]
[389671714,1759783833124,-500.0,0.00019173,2]
[389671716,1759783833144,-500.0,0.00019173,2]
[389671718,1759783833154,-500.0,0.00019173,2]
[389671720,1759783833164,-201.17315359,0.00019173,2]
[389671722,1759783833175,-500.0,0.00019173,2]
[389671724,1759783833185,-500.0,0.00019173,2]
[389671726,1759783833195,-500.0,0.00019173,2]
[389671728,1759783833206,-500.0,0.00019173,2]
[389671731,1759783833217,-500.0,0.00019173,2]
[389671733,1759783833227,-500.0,0.00019173,2]
[389671735,1759783833237,-261.35931636,0.00019173,2]
[389671737,1759783833247,-500.0,0.00019173,2]
[389671739,1759783833258,-500.22290047,0.00019173,2]
[389671741,1759783833268,-500.0,0.00019173,2]
[389671743,1759783833278,-500.0,0.00019173,2]
[389671745,1759783833288,-500.0,0.00019173,2]
[389671747,1759783833299,-500.0,0.00019173,2]
[389671749,1759783833309,-500.0,0.00019173,2]
[389671751,1759783833319,-151.0,0.00019173,2]
[389671753,1759783833329,-151.0,0.00019173,2]
[389671755,1759783833339,-151.0,0.00019173,2]
[389671757,1759783833349,-151.0,0.00019173,2]
[389671759,1759783833359,-151.0,0.00019173,2]
[389671761,1759783833369,-151.0,0.00019173,2]
[389671763,1759783833379,-151.0,0.00019173,2]
[389671765,1759783833388,-500.0,0.00019173,2]
[389671767,1759783833398,-1166.0,0.00019173,2]
[389671769,1759783833408,-151.0,0.00019173,2]
[389671771,1759783833418,-151.0,0.00019173,2]
[389671773,1759783833427,-189.6808087,0.00019173,2]
[389671774,1759783833437,-500.0,0.00019173,2]
[389671775,1759783833447,-151.0,0.00019173,2]
[389671776,1759783833456,-151.0,0.00019173,2]
[389671777,1759783833466,-151.0,0.00019173,2]
[389671778,1759783833476,-294.54371362,0.00019173,2]
[389671779,1759783833486,-151.0,0.00019173,2]
[389671780,1759783833497,-500.0,0.00019173,2]
[389671781,1759783833506,-151.0,0.00019173,2]
[389671782,1759783833516,-11248.06133395,0.00019174,2]
[389671784,1759783833525,-500.0,0.00019176,2]
[389671786,1759783833535,-1001.91791538,0.00019176,2]
[389671788,1759783833545,-34425.822318,0.00019177,2]
[389671789,1759783833555,-200.0,0.00019177,2]
[389671790,1759783833565,-161.90317722,0.00019177,2]
[389671791,1759783833575,-155.0,0.00019177,2]
[389671792,1759783833584,-500.0,0.00019178,2]
[389671793,1759783833594,-500.0,0.00019178,2]
[389671794,1759783833604,-502.03627385,0.00019178,2]
[389671795,1759783833614,-500.0,0.00019178,2]
[389671796,1759783833623,-500.0,0.00019178,2]
[389671797,1759783833633,-481.28206969,0.00019178,2]
[389671798,1759783833643,-500.0,0.00019178,2]
[389671799,1759783833652,-488.55356512,0.00019178,2]
[389671800,1759783833662,-323.90973374,0.00019178,2]
[389671801,1759783833671,-500.0,0.00019178,2]
[389671802,1759783833681,-500.0,0.00019178,2]
[389671803,1759783833691,-500.0,0.00019178,2]
[389671804,1759783833700,-500.0,0.00019178,2]
[389671805,1759783833710,-500.0,0.00019178,2]
[389671806,1759783833720,-500.0,0.00019178,2]
[389671807,1759783833730,-500.0,0.00019178,2]
[389671808,1759783833739,-500.0,0.00019178,2]
[389671809,1759783833749,-480.0,0.00019178,2]
[389671810,1759783833759,-500.0,0.00019178,2]
[389671811,1759783833769,-500.0,0.00019178,2]
[389671812,1759783833779,-500.0,0.00019178,2]
[389671813,1759783833788,-500.0,0.00019178,2]
[389671814,1759783833799,-500.0,0.00019178,2]
[389671815,1759783833809,-158.89749025,0.00019178,2]
[389671816,1759783833821,-500.0,0.00019178,2]
[389671817,1759783833831,-500.0,0.00019178,2]
[389671818,1759783833841,-500.0,0.00019178,2]
[389671819,1759783833851,-500.0,0.00019178,2]
[389671820,1759783833860,-493.29142968,0.00019178,2]
[389671821,1759783833871,-500.0,0.00019178,2]
[389671822,1759783833881,-520.0,0.00019178,3]
[389671823,1759783833890,-309.71882251,0.00019178,2]
[389671824,1759783833903,-500.0,0.00019178,2]
[389671825,1759783833912,-467.76926838,0.00019178,2]
[389671826,1759783833922,-500.0,0.00019178,2]
[389671827,1759783833932,-462.29121478,0.00019178,2]
[389671828,1759783833941,-488.47158803,0.00019178,2]
[389671829,1759783833951,-500.0,0.00019178,2]
[389671830,1759783833961,-500.0,0.00019178,2]
[389671831,1759783833971,-500.0,0.00019178,2]
[389671832,1759783833980,-500.0,0.00019178,2]
[389671833,1759783833989,-500.0,0.00019178,2]
[389671834,1759783833999,-500.0,0.00019178,2]
[389671835,1759783834008,-500.0,0.00019178,2]
[389671836,1759783834018,-500.0,0.00019178,2]
[389671837,1759783834027,-500.0,0.00019178,2]
[389671838,1759783834037,-183.97483117,0.00019178,2]
[389671839,1759783834047,-457.20652691,0.00019178,2]
[389671840,1759783834056,-500.0,0.00019178,2]
[389671841,1759783834066,-319.46823745,0.00019178,2]
[389671842,1759783834076,-151.0,0.00019178,2]
[389671843,1759783834085,-500.0,0.00019178,2]
[389671844,1759783834096,-151.0,0.00019178,2]
[389671845,1759783834106,-151.0,0.00019178,2]
[389671846,1759783834115,-151.0,0.00019178,2]
[389671847,1759783834125,-500.0,0.00019178,2]
[389671848,1759783834135,-500.0,0.00019178,2]
[389671849,1759783834144,-156.83583652,0.00019178,2]
[389671850,1759783834155,-170.40455905,0.00019178,2]
[389671851,1759783834164,-500.0,0.00019178,2]
[389671852,1759783834174,-151.0,0.00019178,2]
[389671853,1759783834184,-151.0,0.00019178,2]
[389671854,1759783834194,-151.0,0.00019178,2]
[389671855,1759783834204,-151.0,0.00019178,2]
[389671856,1759783834213,-151.0,0.00019178,2]
[389671857,1759783834222,-151.0,0.00019178,2]
[389671858,1759783834232,-500.0,0.00019178,2]
[389671859,1759783834241,-151.0,0.00019178,2]
[389671860,1759783834251,-232.721164,0.00019178,2]
[389671861,1759783834260,-500.0,0.00019178,2]
[389671862,1759783834270,-500.0,0.00019178,2]
[389671863,1759783834279,-500.0,0.00019178,2]
[389671864,1759783834289,-500.0,0.00019178,2]
[389671865,1759783834298,-327.93455526,0.00019178,2]
[389671866,1759783834309,-500.0,0.00019178,2]
[389671867,1759783834318,-500.0,0.00019178,2]
[389671868,1759783834328,-636.18984814,0.00019178,2]
[389671869,1759783834338,-151.0,0.00019178,2]
[389671870,1759783834347,-500.0,0.00019178,2]
[389671871,1759783834356,-151.0,0.00019178,2]
[389671872,1759783834366,-500.0,0.00019178,2]
[389671873,1759783834375,-500.0,0.00019178,2]
[389671874,1759783834385,-500.0,0.00019178,2]
[389671875,1759783834395,-500.0,0.00019178,2]
[389671876,1759783834404,-500.0,0.00019178,2]
[389671877,1759783834414,-500.0,0.00019178,2]
[389671878,1759783834423,-500.0,0.00019178,2]
[389671879,1759783834433,-480.0,0.00019178,2]
[389671880,1759783834442,-500.0,0.00019178,2]
[389671881,1759783834451,-500.0,0.00019178,2]
[389671882,1759783834461,-483.81608316,0.00019178,2]
[389671883,1759783834470,-500.0,0.00019178,2]
[389671884,1759783834479,-500.0,0.00019178,2]
[389671885,1759783834489,-225.5034059,0.00019178,2]
[389671886,1759783834499,-151.0,0.00019178,2]
[389671887,1759783834509,-151.0,0.00019178,2]
[389671888,1759783834519,-500.0,0.00019178,2]
[389671889,1759783834528,-151.0,0.00019178,2]
[389671890,1759783834537,-299.54379,0.00019178,2]
[389671891,1759783834546,-586.18380837,0.00019178,2]
[389671892,1759783834556,-151.0,0.00019178,2]
[389671893,1759783834566,-151.0,0.00019178,2]
[389671894,1759783834575,-500.0,0.00019178,2]
[389671895,1759783834585,-151.0,0.00019178,2]
[389671896,1759783834595,-151.0,0.00019178,2]
[389671897,1759783834605,-151.0,0.00019178,2]
[389671898,1759783834614,-151.0,0.00019178,2]
[389671899,1759783834623,-291.94092,0.00019178,2]
[389671900,1759783834632,-151.0,0.00019178,2]
[389671901,1759783834642,-151.0,0.00019178,2]
[389671902,1759783834651,-151.0,0.00019178,2]
[389671903,1759783834660,-151.0,0.00019178,2]
[389671904,1759783834669,-500.0,0.00019178,2]
[389671905,1759783834679,-151.0,0.00019178,2]
[389671906,1759783834688,-151.0,0.00019178,2]
[389671907,1759783834697,-151.0,0.00019178,2]
[389671908,1759783834707,-151.0,0.00019178,2]
[389671909,1759783834716,-153.7728206,0.00019178,2]
[389671910,1759783834726,-238.687059,0.00019178,2]
[389671911,1759783834736,-151.0,0.00019178,2]